bitfinex/quotes_SOLUSD_20250624
["timestamp","ask_amount","ask_price","bid_price","bid_amount"]
[1750743119060,1.6041,144.37,144.3,149.22591021]
[1750743119356,5.66626126,144.36,144.32,5.66626126]
[1750743119533,5.66626126,144.36,144.33,28.54]
[1750743120863,5.66626126,144.35,144.33,28.54]
[1750743121449,5.66626126,144.36,144.33,28.54]
[1750743122870,5.66626126,144.34,144.33,28.54]
[1750743123755,5.66626126,144.35,144.33,28.54]
[1750743124259,5.66626126,144.34,144.33,28.54]
[1750743125562,5.66626126,144.36,144.33,28.54]
[1750743126137,5.66626126,144.35,144.33,28.54]
[1750743127940,5.66626126,144.34,144.33,28.54]
[1750743128457,5.66626126,144.34,144.31,28.54]
[1750743128844,5.66626126,144.33,144.31,28.54]
[1750743129439,5.66626126,144.33,144.29,114.24964886]
[1750743129661,26.0,144.36,144.27,32.1211]
[1750743129662,5.66626126,144.31,144.27,89.4]
[1750743129853,5.66626126,144.31,144.29,28.54]
[1750743130060,5.66626126,144.3,144.27,6.2]
[1750743130240,5.66626126,144.29,144.27,6.2]
[1750743131867,32.078,144.33,144.27,6.2]
[1750743132050,5.66626126,144.3,144.27,34.74]
[1750743132248,5.66626126,144.31,144.27,34.74]
[1750743132861,5.66626126,144.3,144.27,34.74]
[1750743135367,8.76300418,144.36,144.28,24.31591012]
[1750743135557,8.1165,144.37,144.29,41.13662666]
[1750743135890,5.66626126,144.35,144.3,24.31591012]
[1750743136170,31.66626126,144.36,144.31,34.20626126]
[1750743136355,5.66626126,144.36,144.31,34.20626126]
[1750743136759,7.27036126,144.37,144.32,5.66626126]
[1750743137065,7.27036126,144.37,144.33,28.54]
[1750743137242,5.66626126,144.37,144.33,28.54]
[1750743138267,5.66626126,144.37,144.33,35.46849642]
[1750743139772,5.66626126,144.37,144.33,28.54]
[1750743139970,5.66626126,144.38,144.33,41.13477883]
[1750743140175,27.5863,144.4,144.34,5.66626126]
[1750743140352,5.66626126,144.39,144.33,41.66851757]
[1750743140552,5.66626126,144.39,144.34,5.66626126]
[1750743141654,5.66626126,144.39,144.34,12.59430653]
[1750743143976,5.66626126,144.39,144.34,5.66626126]
[1750743145567,10.82367363,144.39,144.34,5.66626126]
[1750743146155,5.66626126,144.38,144.33,41.66841441]
[1750743146355,10.82367363,144.38,144.34,5.66626126]
[1750743146556,5.66626126,144.38,144.34,5.66626126]
[1750743146773,10.82367363,144.38,144.34,5.66626126]
[1750743146981,5.66626126,144.38,144.34,5.66626126]
[1750743147184,10.82367363,144.38,144.34,5.66626126]
[1750743147354,5.15741237,144.37,144.34,5.66626126]
[1750743148362,5.15741237,144.36,144.34,12.59433971]
[1750743148666,5.15741237,144.37,144.34,12.59433971]
[1750743148863,5.15741237,144.36,144.34,12.59433971]
[1750743149175,5.15741237,144.37,144.34,12.59433971]
[1750743149480,5.15741237,144.36,144.34,12.59433971]
[1750743149681,5.66626126,144.38,144.34,12.59433971]
[1750743149854,5.17499607,144.37,144.34,12.59433971]
[1750743150057,5.17499607,144.36,144.34,5.66626126]
[1750743150258,5.66626126,144.38,144.33,41.66839563]
[1750743150458,5.17723689,144.37,144.34,5.66626126]
[1750743150668,5.17723689,144.36,144.35,5.66626126]
[1750743151178,5.66626126,144.39,144.35,5.66626126]
[1750743151179,5.17723689,144.38,144.35,24.31591012]
[1750743151498,5.17585542,144.4,144.37,5.66626126]
[1750743151799,13.68732673,144.44,144.39,5.66626126]
[1750743151957,5.17384727,144.43,144.39,5.66626126]
[1750743152157,5.17384727,144.42,144.39,5.66626126]
[1750743152355,5.17384727,144.41,144.39,5.66626126]
[1750743152583,5.17110023,144.43,144.39,5.66626126]
[1750743152766,5.17110023,144.42,144.39,5.66626126]
[1750743152962,5.17110023,144.41,144.39,5.66626126]
[1750743153176,5.17110023,144.43,144.4,5.66626126]
[1750743153374,38.11302673,144.45,144.4,5.66626126]
[1750743153375,5.17110023,144.42,144.4,5.66626126]
[1750743153571,5.17110023,144.41,144.4,5.66626126]
[1750743153778,5.17110023,144.44,144.4,5.66626126]
[1750743153962,5.17110023,144.43,144.39,41.07191942]
[1750743154162,5.17110023,144.42,144.39,41.07191942]
[1750743154382,5.17110023,144.43,144.39,41.07191942]
[1750743154586,5.17110023,144.42,144.39,34.14626126]
[1750743154792,10.83736149,144.44,144.39,34.14626126]
[1750743154960,5.17110023,144.43,144.39,34.14626126]
[1750743155269,5.17110023,144.42,144.39,34.14626126]
[1750743155471,5.17110023,144.43,144.39,34.14626126]
[1750743155870,5.17110023,144.43,144.39,41.07193227]
[1750743156685,10.83736149,144.44,144.39,41.07193227]
[1750743156987,5.17110023,144.43,144.39,41.07193227]
[1750743157592,10.83736149,144.44,144.39,41.07193227]
[1750743157767,5.66626126,144.43,144.39,41.07193227]
[1750743157966,5.66626126,144.43,144.39,34.14626126]
[1750743158181,5.66626126,144.43,144.39,41.07191367]
[1750743160680,31.66626126,144.45,144.4,5.66626126]
[1750743160888,26.0,144.45,144.41,5.66626126]
[1750743161387,10.83736149,144.47,144.42,5.66626126]
[1750743161579,10.83736149,144.47,144.42,34.14626126]
[1750743162382,10.83736149,144.47,144.46,5.66626126]
[1750743162383,5.17110023,144.47,144.46,5.66626126]
[1750743162697,0.58797732,144.48,144.45,5.66626126]
[1750743163067,0.58797732,144.48,144.46,5.66626126]
[1750743164578,0.58797732,144.48,144.47,6.92185228]
[1750743166168,0.58797732,144.48,144.46,12.58842349]
[1750743167097,0.58797732,144.48,144.47,24.31591012]
[1750743168396,0.58797732,144.48,144.47,31.2377624]
[1750743170101,0.58797732,144.48,144.45,59.69866021]
[1750743170887,0.58797732,144.48,144.46,5.66626126]
[1750743171800,0.58797732,144.48,144.45,28.46]
[1750743172006,0.58797732,144.48,144.45,34.12626126]
[1750743173179,5.66626126,144.47,144.44,6.16]
[1750743173688,5.66626126,144.47,144.43,47.10964886]
[1750743174580,5.66626126,144.47,144.43,28.46]
[1750743175908,5.66626126,144.45,144.42,6.16]
[1750743176092,5.66626126,144.44,144.42,34.62]
[1750743176640,5.66626126,144.45,144.42,34.62]
[1750743178095,5.66626126,144.45,144.42,6.16]
[1750743178812,5.66626126,144.44,144.42,6.16]
[1750743179211,5.66626126,144.43,144.42,6.16]
[1750743182309,26.0,144.47,144.42,6.16]
[1750743182310,5.66626126,144.44,144.42,6.16]
[1750743183301,5.66626126,144.43,144.42,6.16]
[1750743183503,5.66626126,144.44,144.42,6.16]
[1750743184612,5.66626126,144.45,144.42,6.16]
[1750743185312,5.66626126,144.46,144.42,6.16]
[1750743185642,31.66626126,144.47,144.42,11.82626126]
[1750743186124,5.66626126,144.46,144.42,6.16]
[1750743186518,0.58797732,144.48,144.44,5.66626126]
[1750743186694,0.58797732,144.48,144.46,5.66626126]
[1750743186895,0.58797732,144.48,144.46,34.12626126]
[1750743187120,0.58797732,144.48,144.46,41.0484131]
[1750743188201,0.58797732,144.48,144.47,5.66626126]
[1750743189105,0.58797732,144.48,144.46,34.12626126]
[1750743189805,0.58797732,144.48,144.46,28.46]
[1750743190007,6.25423858,144.48,144.46,28.46]
[1750743190911,5.66626126,144.47,144.46,28.46]
[1750743191107,0.58797732,144.48,144.46,28.46]
[1750743191503,0.58797732,144.48,144.45,5.66626126]
[1750743191738,0.58797732,144.48,144.44,41.04939102]
[1750743192433,0.58797732,144.48,144.45,5.66626126]
[1750743195408,0.58797732,144.48,144.46,24.31591012]
[1750743195631,0.58797732,144.48,144.47,34.12626126]
[1750743198614,6.25423858,144.48,144.45,28.46]
[1750743198813,5.66626126,144.47,144.45,28.46]
[1750743199732,10.83736149,144.47,144.45,28.46]
[1750743200865,5.66626126,144.46,144.42,6.16]
[1750743201042,5.66626126,144.44,144.41,28.46]
[1750743202350,38.70100405,144.48,144.4,6.16]
[1750743202351,5.66626126,144.43,144.4,6.16]
[1750743202651,5.66626126,144.43,144.4,34.62]
[1750743202857,10.83736149,144.43,144.4,34.62]
[1750743203162,5.17110023,144.46,144.4,34.62]
[1750743203351,5.17110023,144.45,144.4,40.28626126]
[1750743203560,10.83736149,144.46,144.41,5.66626126]
[1750743203855,10.83736149,144.45,144.4,40.28626126]
[1750743204061,5.66626126,144.45,144.4,40.28626126]
[1750743204466,5.17110023,144.45,144.41,24.31591012]
[1750743204637,5.66626126,144.46,144.41,24.31591012]
[1750743204960,10.83736149,144.46,144.41,24.31591012]
[1750743205133,5.66626126,144.45,144.41,18.64964886]
[1750743205548,10.83736149,144.45,144.41,18.64964886]
[1750743205858,5.66626126,144.45,144.41,18.64964886]
[1750743206055,5.66626126,144.43,144.4,124.02]
[1750743206359,5.66626126,144.44,144.4,34.62]
[1750743206535,10.83736149,144.44,144.4,34.62]
[1750743206734,5.66626126,144.44,144.4,34.62]
[1750743207349,10.83736149,144.44,144.4,34.62]
[1750743207552,5.66626126,144.44,144.4,34.62]
[1750743209045,10.83736149,144.44,144.4,34.62]
[1750743209244,5.66626126,144.44,144.4,34.62]
[1750743209939,10.83736149,144.44,144.4,34.62]
[1750743210143,5.66626126,144.44,144.4,34.62]
[1750743210659,10.83736149,144.44,144.4,40.28626126]
[1750743210865,5.66626126,144.44,144.4,40.28626126]
[1750743211569,5.17110023,144.44,144.4,40.28626126]
[1750743211751,5.66626126,144.45,144.4,47.21141363]
[1750743211941,5.17110023,144.44,144.4,47.21141363]
[1750743212472,5.17110023,144.44,144.4,40.28626126]
[1750743212762,5.17110023,144.44,144.41,5.66626126]
[1750743212963,5.17110023,144.44,144.42,28.48]
[1750743215852,10.83736149,144.44,144.42,28.48]
[1750743216051,5.66626126,144.43,144.42,28.48]
[1750743216246,5.66626126,144.43,144.4,34.62]
[1750743216744,10.83736149,144.43,144.4,34.62]
[1750743216941,5.66626126,144.43,144.4,34.62]
[1750743217163,10.83736149,144.45,144.4,40.28626126]
[1750743217364,5.17110023,144.44,144.4,40.28626126]
[1750743217547,5.17110023,144.43,144.4,47.21139085]
[1750743217861,5.17110023,144.44,144.41,12.59081672]
[1750743218088,5.17110023,144.45,144.43,18.64964886]
[1750743218252,5.17110023,144.44,144.43,24.31591012]
[1750743218445,5.17110023,144.47,144.44,28.48]
[1750743218651,5.17110023,144.46,144.44,28.48]
[1750743219555,5.17110023,144.45,144.44,28.48]
[1750743219758,10.83736149,144.46,144.44,28.48]
[1750743219968,10.83736149,144.45,144.42,28.48]
[1750743220140,5.66626126,144.45,144.42,28.48]
[1750743220342,10.83736149,144.46,144.42,28.48]
[1750743220558,5.17110023,144.45,144.42,28.48]
[1750743220972,5.66626126,144.46,144.42,28.48]
[1750743221144,10.83736149,144.46,144.42,28.48]
[1750743221467,5.66626126,144.46,144.42,28.48]
[1750743221668,10.83736149,144.46,144.42,28.48]
[1750743221878,5.66626126,144.46,144.42,28.48]
[1750743222079,10.83736149,144.46,144.42,28.48]
[1750743222381,5.66626126,144.46,144.42,28.48]
[1750743222544,10.83736149,144.46,144.42,28.48]
[1750743222745,5.17110023,144.45,144.42,28.48]
[1750743223883,5.66626126,144.46,144.42,34.14626126]
[1750743224043,10.83736149,144.46,144.42,34.14626126]
[1750743224250,5.66626126,144.46,144.42,34.14626126]
[1750743224547,10.83736149,144.46,144.42,34.14626126]
[1750743224742,5.17110023,144.45,144.42,28.48]
[1750743225878,5.66626126,144.46,144.42,28.48]
[1750743226052,5.17110023,144.45,144.42,28.48]
[1750743226374,10.83736149,144.45,144.42,28.48]
[1750743226560,5.66626126,144.45,144.42,28.48]
[1750743226961,10.83736149,144.45,144.42,28.48]
[1750743227163,5.17110023,144.47,144.42,28.48]
[1750743227362,5.66626126,144.45,144.42,28.48]
[1750743227576,10.83736149,144.45,144.42,28.48]
[1750743227773,5.66626126,144.46,144.42,28.48]
[1750743227980,5.17110023,144.45,144.42,28.48]
[1750743228688,5.17110023,144.45,144.42,34.14626126]
[1750743228887,5.17110023,144.46,144.42,34.14626126]
[1750743229061,5.17110023,144.46,144.43,24.31591012]
[1750743229262,5.17110023,144.47,144.45,18.64964886]
[1750743229473,5.17110023,144.49,144.47,18.64964886]
[1750743229653,5.17110023,144.51,144.48,12.58763446]
[1750743229853,5.17110023,144.5,144.49,34.12626126]
[1750743230077,10.83736149,144.53,144.49,28.46]
[1750743230282,10.83736149,144.52,144.49,28.46]
[1750743230488,5.17110023,144.51,144.49,28.46]
[1750743230698,5.66626126,144.53,144.49,28.46]
[1750743230910,5.17092685,144.52,144.49,28.46]
[1750743231201,5.17092685,144.51,144.49,28.46]
[1750743231363,5.17092685,144.52,144.49,28.46]
[1750743231561,5.17092685,144.51,144.49,28.46]
[1750743231762,5.17092685,144.52,144.49,28.46]
[1750743232070,5.17092685,144.51,144.49,28.46]
[1750743232279,5.17092685,144.52,144.49,28.46]
[1750743232583,5.17092685,144.51,144.49,28.46]
[1750743232781,5.17092685,144.52,144.49,28.46]
[1750743232993,5.17092685,144.51,144.49,28.46]
[1750743233282,5.17092685,144.52,144.49,28.46]
[1750743233585,5.17092685,144.51,144.49,28.46]
[1750743233886,5.17092685,144.52,144.49,28.46]
[1750743234074,5.17092685,144.51,144.49,28.46]
[1750743235563,5.17092685,144.52,144.49,28.46]
[1750743235763,5.17092685,144.51,144.49,28.46]
[1750743235975,5.17092685,144.52,144.49,28.46]
[1750743236284,5.17092685,144.51,144.49,28.46]
[1750743236482,5.17092685,144.52,144.49,28.46]
[1750743236678,5.17092685,144.51,144.49,28.46]
[1750743236873,5.17092685,144.52,144.49,28.46]
[1750743237057,5.17092685,144.51,144.49,28.46]
[1750743237254,5.17092685,144.52,144.49,28.46]
[1750743237460,10.83718811,144.51,144.47,28.46]
[1750743237658,10.83718811,144.5,144.47,28.46]
[1750743237884,5.66626126,144.5,144.47,28.46]
[1750743238270,10.83718811,144.5,144.47,28.46]
[1750743238472,5.66626126,144.5,144.47,28.46]
[1750743238655,5.17092685,144.49,144.46,117.86]
[1750743238859,5.17092685,144.49,144.46,28.46]
[1750743239588,5.66626126,144.5,144.46,28.46]
[1750743239759,5.17092685,144.51,144.47,5.66626126]
[1750743239961,10.83718811,144.52,144.47,5.66626126]
[1750743240156,10.83718811,144.52,144.48,5.66626126]
[1750743240157,5.17092685,144.51,144.48,5.66626126]
[1750743240600,5.17092685,144.51,144.47,24.31591012]
[1750743241067,10.83718811,144.51,144.47,24.31591012]
[1750743241272,5.66626126,144.51,144.47,18.64964886]
[1750743241783,10.83718811,144.51,144.47,18.64964886]
[1750743241969,5.66626126,144.51,144.47,18.64964886]
[1750743242163,6.46365856,144.54,144.47,18.64964886]
[1750743242164,5.17092685,144.52,144.51,18.64964886]
[1750743242468,5.17092685,144.55,144.51,52.77591012]
[1750743242666,5.17092685,144.54,144.51,52.77591012]
[1750743242876,5.17092685,144.55,144.51,58.93591012]
[1750743243769,10.83718811,144.54,144.51,34.62]
[1750743243998,10.83718811,144.53,144.51,6.16]
[1750743244194,5.66626126,144.53,144.51,6.16]
[1750743244366,5.66626126,144.52,144.51,6.16]
[1750743244986,5.17092685,144.53,144.51,6.16]
[1750743245186,10.83718811,144.52,144.51,6.16]
[1750743245486,5.66626126,144.52,144.47,52.77591012]
[1750743245791,5.17092685,144.53,144.47,52.77591012]
[1750743245996,10.83718811,144.52,144.47,52.77591012]
[1750743246291,5.66626126,144.52,144.47,52.77591012]
[1750743247271,5.66626126,144.52,144.47,47.10964886]
[1750743247478,5.66626126,144.52,144.47,52.77591012]
[1750743248603,5.66626126,144.52,144.47,59.69767435]
[1750743249277,5.66626126,144.52,144.48,5.66626126]
[1750743250391,5.17092685,144.53,144.48,5.66626126]
[1750743250596,5.66626126,144.52,144.48,5.66626126]
[1750743253400,5.17092685,144.54,144.49,26.0]
[1750743253606,1.5726,144.57,144.53,5.66626126]
[1750743253802,12.39738708,144.57,144.53,18.64964886]
[1750743254100,5.66626126,144.56,144.52,11.82626126]
[1750743254492,5.66626126,144.55,144.52,6.16]
[1750743254687,5.66626126,144.54,144.52,6.16]
[1750743255625,31.15852582,144.56,144.52,6.16]
[1750743255909,6.73112582,144.57,144.52,6.16]
[1750743256072,5.66626126,144.56,144.52,6.16]
[1750743256902,10.82478708,144.57,144.52,13.07938251]
[1750743257202,5.66626126,144.57,144.53,5.66626126]
[1750743258008,5.15852582,144.59,144.55,5.66626126]
[1750743258207,10.82478708,144.6,144.55,5.66626126]
[1750743258412,5.66626126,144.59,144.54,24.31591012]
[1750743258719,10.82478708,144.6,144.55,5.66626126]
[1750743259083,5.66626126,144.6,144.55,5.66626126]
[1750743260510,5.66626126,144.6,144.55,6.91790658]
[1750743260712,1.6016,144.61,144.55,12.58416784]
[1750743261029,5.66626126,144.6,144.55,12.58416784]
[1750743263698,1.6016,144.61,144.55,12.58416784]
[1750743264007,5.66626126,144.6,144.55,12.58416784]
[1750743265020,5.66626126,144.59,144.55,5.66626126]
[1750743265623,5.66626126,144.59,144.54,25.56800663]
[1750743265828,1.6016,144.61,144.55,5.66626126]
[1750743266003,5.66626126,144.59,144.55,5.66626126]
[1750743266417,1.6016,144.61,144.55,5.66626126]
[1750743266602,5.66626126,144.59,144.55,5.66626126]
[1750743268416,5.15852582,144.62,144.56,18.64964886]
[1750743268617,5.66626126,144.61,144.57,5.66626126]
[1750743269403,5.66626126,144.61,144.56,24.31591012]
[1750743270114,31.15852582,144.64,144.57,5.66626126]
[1750743270319,5.66626126,144.62,144.57,5.66626126]
[1750743271131,5.66626126,144.61,144.53,28.44]
[1750743271316,5.66626126,144.58,144.54,5.66626126]
[1750743272415,5.66626126,144.58,144.53,6.16]
[1750743272755,5.66626126,144.58,144.53,11.82626126]
[1750743273226,5.15852582,144.6,144.53,11.82626126]
[1750743273407,5.66626126,144.58,144.53,11.82626126]
[1750743273733,5.66626126,144.58,144.54,5.66626126]
[1750743274144,5.15852582,144.6,144.57,5.66626126]
[1750743274330,5.66626126,144.62,144.57,5.66626126]
[1750743274545,5.66626126,144.61,144.56,5.66626126]
[1750743275244,5.66626126,144.61,144.57,5.66626126]
[1750743276023,5.66626126,144.61,144.56,6.91753347]
[1750743276234,5.66626126,144.61,144.57,5.66626126]
[1750743277019,5.66626126,144.62,144.58,5.66626126]
[1750743277216,5.66626126,144.63,144.58,5.66626126]
[1750743278535,31.15852582,144.64,144.58,5.66626126]
[1750743278536,5.66626126,144.62,144.58,5.66626126]
[1750743279349,5.66626126,144.63,144.58,24.31591012]
[1750743279550,5.66626126,144.63,144.59,5.66626126]
[1750743279739,5.66626126,144.63,144.58,18.64964886]
[1750743280047,5.66626126,144.63,144.59,5.66626126]
[1750743280217,5.66626126,144.63,144.58,24.31591012]
[1750743281854,5.66626126,144.63,144.58,18.64964886]
[1750743282155,5.66626126,144.63,144.58,24.31591012]
[1750743283651,5.66626126,144.63,144.58,18.64964886]
[1750743283954,5.66626126,144.63,144.58,24.31591012]
[1750743284254,5.66626126,144.63,144.59,5.66626126]
[1750743284758,5.66626126,144.64,144.59,5.66626126]
[1750743284930,5.66626126,144.65,144.6,24.31591012]
[1750743285130,5.15852582,144.67,144.62,5.66626126]
[1750743285637,10.82478708,144.68,144.63,5.66626126]
[1750743285843,36.82478708,144.68,144.63,5.66626126]
[1750743286164,31.66626126,144.68,144.63,5.66626126]
[1750743287162,26.0,144.68,144.63,5.66626126]
[1750743287730,31.66626126,144.68,144.63,5.66626126]
[1750743287931,31.66626126,144.68,144.63,18.64964886]
[1750743288165,31.66626126,144.68,144.63,24.31591012]
[1750743288455,31.66626126,144.68,144.63,18.64964886]
[1750743288648,31.66626126,144.68,144.63,24.31591012]
[1750743289030,5.66626126,144.66,144.61,24.31591012]
[1750743289229,5.66626126,144.66,144.62,18.64964886]
[1750743289441,6.65774382,144.7,144.64,5.66626126]
[1750743289646,6.65774382,144.7,144.62,18.64964886]
[1750743289647,1.499218,144.7,144.67,18.64964886]
[1750743289842,1.499218,144.7,144.69,24.31591012]
[1750743290652,1.499218,144.7,144.69,25.02304886]
[1750743291081,1.499218,144.7,144.69,37.60063778]
[1750743291252,1.499218,144.7,144.69,63.60063778]
[1750743291659,1.499218,144.7,144.69,92.14063778]
[1750743292878,1.499218,144.7,144.69,53.56304886]
[1750743293073,1.499218,144.7,144.69,66.14063778]
[1750743293588,5.15852582,144.79,144.72,26.0]
[1750743293761,120.53822379,144.86,144.82,20.79]
[1750743293762,116.941,144.86,144.82,20.79]
[1750743293976,116.941,144.86,144.85,26.0]
[1750743294162,12.2,144.98,144.88,26.0]
[1750743294361,17.86626126,144.98,144.89,28.98]
[1750743294573,38.2,144.98,144.92,5.66626126]
[1750743294787,26.0,144.95,144.9,6.48]
[1750743294959,5.66626126,144.95,144.9,6.48]
[1750743295151,12.2,144.98,144.87,3.40776751]
[1750743295460,5.66626126,144.92,144.86,12.14626126]
[1750743295849,5.66626126,144.91,144.86,6.48]
[1750743296079,26.0,144.93,144.86,6.48]
[1750743296080,5.66626126,144.9,144.86,6.48]
[1750743296282,9.3666174,144.9,144.86,6.48]
[1750743296975,1.5936,144.95,144.87,6.90274038]
[1750743297182,9.3666174,144.94,144.89,9.3666174]
[1750743297378,9.3666174,144.96,144.91,9.3666174]
[1750743297548,9.3666174,144.97,144.91,9.3666174]
[1750743298465,9.3666174,144.96,144.91,9.3666174]
[1750743299160,9.3666174,144.96,144.92,6.90035881]
[1750743299480,1.499218,144.99,144.92,16.26697621]
[1750743299666,9.3666174,144.97,144.92,22.74697621]
[1750743299866,9.3666174,144.98,144.93,9.3666174]
[1750743300079,1.499218,144.99,144.93,9.3666174]
[1750743300080,10.8658354,144.99,144.93,9.3666174]
[1750743300558,9.3666174,144.98,144.93,9.3666174]
[1750743300763,9.3666174,144.97,144.92,39.99787325]
[1750743301155,10.8658354,144.99,144.93,9.3666174]
[1750743301378,9.3666174,144.98,144.93,9.3666174]
[1750743301571,1.499218,144.99,144.93,9.3666174]
[1750743302073,9.3666174,144.98,144.92,30.63125585]
[1750743302283,1.499218,144.99,144.93,9.3666174]
[1750743302465,9.3666174,144.98,144.93,9.3666174]
[1750743302665,10.8658354,144.99,144.94,9.3666174]
[1750743303053,9.3666174,144.98,144.93,9.3666174]
[1750743303879,1.499218,144.99,144.92,13.38035881]
[1750743304065,9.3666174,144.95,144.92,13.38035881]
[1750743304675,26.0,144.98,144.93,28.01626626]
[1750743304877,9.3666174,144.97,144.92,13.38035881]
[1750743305061,1.499218,144.99,144.92,13.38035881]
[1750743305062,9.3666174,144.96,144.92,13.38035881]
[1750743305872,9.3666174,144.97,144.92,22.74697621]
[1750743306467,9.3666174,144.97,144.92,13.38035881]
[1750743306668,9.3666174,144.97,144.92,22.74697621]
[1750743307881,9.3666174,144.96,144.92,13.38035881]
[1750743308562,9.3666174,144.96,144.92,22.74697621]
[1750743308761,9.3666174,144.97,144.92,22.74697621]
[1750743308952,1.499218,144.99,144.95,9.3666174]
[1750743309379,1.499218,144.99,144.96,9.3666174]
[1750743309678,1.499218,144.99,144.97,9.3666174]
[1750743310086,1.499218,144.99,144.96,16.26507214]
[1750743310254,1.499218,144.99,144.97,9.3666174]
[1750743310461,1.499218,144.99,144.95,34.91512408]
[1750743310661,9.3666174,144.98,144.94,28.96]
[1750743310859,9.3666174,144.97,144.93,35.48]
[1750743312162,9.3666174,144.96,144.91,25.28374886]
[1750743312383,9.3666174,144.95,144.91,25.12964886]
[1750743313169,9.3666174,144.95,144.91,34.49626626]
[1750743313376,9.3666174,144.95,144.91,25.12964886]
[1750743313891,9.3666174,144.95,144.91,34.49626626]
[1750743315092,9.3666174,144.95,144.91,6.48]
[1750743315591,9.3666174,144.94,144.91,6.48]
[1750743315771,26.0,144.98,144.87,41.8835]
[1750743315772,9.3666174,144.92,144.87,41.8835]
[1750743315974,32.89758283,144.98,144.87,41.8835]
[1750743316181,9.3666174,144.91,144.87,51.2501174]
[1750743316576,32.89758283,144.98,144.87,51.2501174]
[1750743316577,26.0,144.98,144.88,9.3666174]
[1750743316778,9.3666174,144.92,144.88,9.3666174]
[1750743317094,9.3666174,144.92,144.87,58.1527953]
[1750743318382,1.499218,144.99,144.91,18.64964886]
[1750743318581,9.3666174,144.98,144.92,28.96]
[1750743318886,9.3666174,144.98,144.94,9.3666174]
[1750743319092,10.8658354,144.99,144.94,9.3666174]
[1750743319393,1.499218,144.99,144.95,38.3466174]
[1750743319981,9.3666174,144.97,144.93,6.48]
[1750743320187,9.3666174,144.96,144.93,6.48]
[1750743320366,9.3666174,144.97,144.93,6.48]
[1750743320567,9.3666174,144.98,144.93,22.74643099]
[1750743321074,10.8658354,144.99,144.94,9.3666174]
[1750743321478,10.8658354,144.99,144.95,29.0]
[1750743322602,9.3666174,144.98,144.95,29.0]
[1750743323977,1.499218,144.99,144.95,38.3666174]
[1750743324179,1.499218,144.99,144.98,9.3666174]
[1750743324379,1.499218,144.99,144.98,63.89376936]
[1750743325392,1.499218,144.99,144.98,89.89376936]
[1750743325598,1.499218,144.99,144.98,63.89376936]
[1750743325801,9.3666174,145.05,144.98,7.6036031]
[1750743325981,9.3666174,145.04,144.98,42.3975031]
[1750743326182,9.3666174,145.02,144.98,35.5]
[1750743326392,9.3666174,145.01,144.98,29.06]
[1750743326594,1.5736,145.05,144.98,29.06]
[1750743326908,9.3666174,144.99,144.96,35.56]
[1750743327203,3.3541944,145.05,144.99,18.64964886]
[1750743327389,3.3541944,145.05,145.0,38.4266174]
[1750743327390,12.7208118,145.05,145.0,38.4266174]
[1750743327779,3.3541944,145.05,145.0,29.06]
[1750743327975,9.3666174,145.02,144.98,29.14]
[1750743328474,3.3541944,145.05,144.98,45.40378803]
[1750743328475,9.3666174,145.03,144.98,45.40378803]
[1750743328675,9.3666174,145.04,144.98,36.03749432]
[1750743328880,9.3666174,145.04,144.98,38.5066174]
[1750743329291,9.3666174,145.04,144.98,29.14]
[1750743329488,9.3666174,145.04,144.98,38.5066174]
[1750743329704,9.3666174,145.03,144.98,38.5066174]
[1750743330203,9.3666174,145.04,144.98,38.5066174]
[1750743330905,9.3666174,145.01,144.98,29.14]
[1750743331087,9.3666174,145.02,144.97,6.89797169]
[1750743331286,9.3666174,145.03,144.98,9.3666174]
[1750743331501,9.3666174,145.03,144.97,25.54762055]
[1750743331692,9.3666174,145.03,144.98,9.3666174]
[1750743332203,9.3666174,145.02,144.97,34.91423795]
[1750743332703,9.3666174,145.01,144.96,44.9666174]
[1750743333614,8.39312123,145.05,144.96,35.6]
[1750743333615,9.3666174,145.0,144.96,35.6]
[1750743333778,5.03892683,145.03,144.96,35.6]
[1750743333978,5.03892683,145.03,144.96,6.5]
[1750743334194,9.3666174,144.98,144.96,6.5]
[1750743334600,9.3666174,144.97,144.96,6.5]
[1750743335018,9.3666174,144.97,144.91,6.5]
[1750743335193,26.0,145.01,144.91,51.86738333]
[1750743335194,14.40554423,144.96,144.91,51.86738333]
[1750743335393,26.0,145.01,144.92,9.3666174]
[1750743335394,9.3666174,144.97,144.92,9.3666174]
[1750743335613,5.10719934,144.96,144.92,9.3666174]
[1750743335796,5.10719934,144.95,144.92,9.3666174]
[1750743335999,9.3666174,144.96,144.92,9.3666174]